bitfinex/quotes_SOLUSD_20230113
["timestamp","ask_amount","ask_price","bid_price","bid_amount"]
[1673647921641,4.671e-05,18.44,18.421,44.4228947]
[1673647921841,4.671e-05,18.44,18.421,20.0]
[1673647922376,4.671e-05,18.44,18.421,44.4228947]
[1673647923322,4.671e-05,18.44,18.424,60.26298925]
[1673647923518,4.671e-05,18.44,18.425,20.0]
[1673647923726,4.671e-05,18.44,18.425,44.4228947]
[1673647923954,4.671e-05,18.44,18.425,80.26298925]
[1673647924157,4.671e-05,18.44,18.426,24.4228947]
[1673647924374,4.671e-05,18.44,18.427,20.0]
[1673647924697,4.671e-05,18.44,18.431,168.9]
[1673647925226,4.671e-05,18.44,18.433,188.9]
[1673647925538,4.671e-05,18.44,18.435,20.0]
[1673647925859,4.671e-05,18.44,18.435,188.9]
[1673647926184,4.671e-05,18.44,18.435,20.0]
[1673647928777,4.671e-05,18.44,18.436,41.27723769]
[1673647929214,4.671e-05,18.44,18.424,20.0]
[1673647929968,4.671e-05,18.44,18.428,24.4228947]
[1673647929969,44.4676599,18.439,18.428,24.4228947]
[1673647930162,44.4676599,18.439,18.401,111.1926]
[1673647930163,10.25464253,18.438,18.401,111.1926]
[1673647930351,23.96443253,18.436,18.401,111.1926]
[1673647930564,33.7,18.42,18.401,111.1926]
[1673647930882,33.42,18.43,18.4,109.7123]
[1673647931086,33.7,18.42,18.391,20.0]
[1673647931318,20.0,18.418,18.391,20.0]
[1673647931723,149.47302916,18.418,18.391,20.0]
[1673647931932,149.47302916,18.418,18.39,166.55664667]
[1673647932144,136.50383636,18.417,18.39,53.81604667]
[1673647932355,26.29021,18.416,18.39,53.81604667]
[1673647932679,6.29021,18.415,18.39,53.81604667]
[1673647932868,6.29021,18.415,18.39,222.71604667]
[1673647933076,33.7,18.42,18.39,60.09035667]
[1673647933305,33.7,18.42,18.392,20.0]
[1673647933732,33.7,18.42,18.393,20.0]
[1673647933947,69.9594028,18.42,18.393,20.0]
[1673647934155,36.2594028,18.42,18.393,20.0]
[1673647934364,6.29021,18.42,18.394,20.0]
[1673647934576,33.55,18.43,18.395,26.2726]
[1673647935006,134.8,18.44,18.395,26.2726]
[1673647935007,33.67,18.44,18.395,195.1726]
[1673647935225,33.67,18.44,18.396,6.27226]
[1673647935434,36.2594028,18.439,18.401,168.9]
[1673647935624,6.29021,18.439,18.402,26.27022]
[1673647935835,29.9691928,18.439,18.403,6.26988]
[1673647936045,29.9691928,18.438,18.403,6.26988]
[1673647936385,6.29021,18.439,18.403,6.26988]
[1673647936386,6.29021,18.439,18.405,20.0]
[1673647936596,20.0,18.452,18.405,20.0]
[1673647936597,29.9691928,18.44,18.405,20.0]
[1673647936787,29.9691928,18.438,18.405,20.0]
[1673647936999,6.29021,18.437,18.405,20.0]
[1673647938273,33.64,18.44,18.405,20.0]
[1673647938582,33.64,18.44,18.406,6.26885]
[1673647938804,33.64,18.44,18.405,20.0]
[1673647938805,69.8994028,18.44,18.407,20.0]
[1673647939414,39.93021,18.44,18.407,20.0]
[1673647939839,6.29021,18.44,18.407,20.0]
[1673647940256,33.67,18.45,18.41,20.0]
[1673647940471,39.96021,18.45,18.411,195.16715]
[1673647940683,69.9294028,18.45,18.412,6.26681]
[1673647941005,69.9294028,18.45,18.413,20.0]
[1673647941006,63.6391928,18.45,18.413,20.0]
[1673647941198,63.6391928,18.45,18.414,20.0]
[1673647941405,6.29021,18.45,18.414,20.0]
[1673647941627,45.8067904,18.458,18.421,168.9]
[1673647941825,33.67,18.47,18.422,26.26341]
[1673647942034,33.67,18.47,18.431,168.9]
[1673647942253,33.67,18.47,18.432,20.0]
[1673647942469,33.67,18.47,18.433,188.9]
[1673647942675,33.67,18.47,18.434,26.25933]
[1673647942895,33.67,18.47,18.434,6.25933]
[1673647943311,1.91121636,18.471,18.434,6.25933]
[1673647943312,33.7,18.46,18.434,6.25933]
[1673647943520,45.8067904,18.46,18.435,24.4228947]
[1673647943733,1.91121636,18.471,18.435,24.4228947]
[1673647943947,1.91121636,18.471,18.436,168.9]
[1673647944159,1.91121636,18.471,18.437,20.0]
[1673647944354,33.69,18.47,18.437,40.0]
[1673647944560,1.91121636,18.471,18.433,20.0]
[1673647944892,33.7,18.46,18.434,6.25933]
[1673647945733,33.7,18.46,18.435,24.64450203]
[1673647946268,1.91121636,18.471,18.435,24.64450203]
[1673647947101,1.91121636,18.471,18.436,20.0]
[1673647947504,1.91121636,18.471,18.433,20.0]
[1673647947725,33.7,18.46,18.436,46.79949906]
[1673647948137,33.7,18.46,18.424,20.0]
[1673647948138,20.0,18.459,18.424,20.0]
[1673647948343,20.0,18.459,18.427,6.26171]
[1673647948549,33.67,18.45,18.427,6.26171]
[1673647949098,33.55,18.44,18.427,6.26171]
[1673647949301,33.55,18.44,18.42,115.2959]
[1673647949515,33.55,18.44,18.411,108.1747]
[1673647949706,33.55,18.44,18.41,115.2959]
[1673647950235,40.0,18.439,18.411,24.64450203]
[1673647950440,40.0,18.439,18.404,26.90799997]
[1673647950441,33.67,18.43,18.404,26.90799997]
[1673647950863,3.44839703,18.419,18.404,26.90799997]
[1673647951516,33.7,18.42,18.404,26.90799997]
[1673647951699,4.59753878,18.429,18.404,26.90799997]
[1673647951913,6.29021,18.428,18.405,49.28900406]
[1673647952123,6.29021,18.428,18.405,24.64450203]
[1673647953086,6.29021,18.428,18.406,238.29998062]
[1673647953281,6.29021,18.428,18.407,20.0]
[1673647953491,134.8,18.46,18.408,20.0]
[1673647953716,134.8,18.46,18.409,188.9]
[1673647953717,33.7,18.45,18.409,188.9]
[1673647953934,6.29021,18.449,18.409,262.94448265]
[1673647954138,6.29021,18.449,18.411,168.9]
[1673647954342,6.29021,18.449,18.412,20.0]
[1673647954546,33.7,18.45,18.413,168.9]
[1673647954758,33.67,18.46,18.415,20.0]
[1673647954968,6.29021,18.452,18.415,20.0]
[1673647955183,6.29021,18.452,18.417,188.9]
[1673647955395,6.29021,18.452,18.418,20.0]
[1673647955594,6.29021,18.452,18.419,168.9]
[1673647955804,33.67,18.46,18.421,168.9]
[1673647956011,33.67,18.46,18.423,20.0]
[1673647956234,33.67,18.46,18.424,20.0]
[1673647956458,33.67,18.46,18.424,24.64450203]
[1673647956673,33.67,18.46,18.423,20.0]
[1673647956674,33.67,18.46,18.425,24.64450203]
[1673647956857,33.44,18.45,18.425,24.64450203]
[1673647957184,33.44,18.45,18.423,20.0]
[1673647957597,33.44,18.45,18.423,44.64450203]
[1673647957813,33.44,18.45,18.424,20.0]
[1673647958350,6.29021,18.449,18.424,20.0]
[1673647958547,6.29021,18.449,18.419,20.0]
[1673647958741,6.29021,18.449,18.41,136.4777]
[1673647958742,66.9691928,18.448,18.41,136.4777]
[1673647958953,6.29021,18.447,18.41,136.4777]
[1673647959177,57.0,18.446,18.41,136.4777]
[1673647959383,6.29021,18.445,18.41,136.4777]
[1673647959607,36.2594028,18.445,18.41,136.4777]
[1673647959815,26.90809343,18.453,18.412,6.26681]
[1673647960045,20.0,18.451,18.411,20.0]
[1673647960342,6.29021,18.45,18.411,20.0]
[1673647960555,36.2594028,18.45,18.411,20.0]
[1673647960748,29.9691928,18.449,18.411,188.9]
[1673647960953,6.29021,18.45,18.414,20.0]
[1673647961283,6.29021,18.45,18.416,168.9]
[1673647961601,26.90809343,18.453,18.417,20.0]
[1673647961805,26.90809343,18.453,18.418,20.0]
[1673647962000,56.87728623,18.453,18.419,20.0]
[1673647962210,33.7,18.45,18.42,20.0]
[1673647962647,26.90809343,18.453,18.421,203.06484237]
[1673647962965,26.90809343,18.453,18.423,188.9]
[1673647963174,26.90809343,18.453,18.424,26.26273]
[1673647963396,26.90809343,18.453,18.425,175.16239]
[1673647963582,26.90809343,18.453,18.427,20.0]
[1673647963824,26.90809343,18.453,18.428,20.0]
[1673647964027,26.90809343,18.453,18.429,20.0]
[1673647964354,26.90809343,18.453,18.43,20.0]
[1673647964544,26.90809343,18.453,18.43,44.64450203]
[1673647964966,26.90809343,18.453,18.43,20.0]
[1673647965606,26.90809343,18.453,18.428,20.0]
[1673647965803,26.90809343,18.453,18.426,20.0]
[1673647965804,26.90809343,18.453,18.422,118.0515]
[1673647966016,26.90809343,18.453,18.421,20.0]
[1673647966017,20.0,18.451,18.421,20.0]
[1673647966224,26.29021,18.45,18.42,115.2081]
[1673647966451,23.29021,18.449,18.42,115.2081]
[1673647966649,6.29021,18.448,18.42,115.2081]
[1673647966855,36.2594028,18.448,18.42,115.2081]
[1673647967070,29.9691928,18.447,18.42,115.2081]
[1673647967270,6.29021,18.446,18.42,115.2081]
[1673647967487,6.29021,18.446,18.414,20.0]
[1673647967693,29.9691928,18.445,18.414,20.0]
[1673647967908,6.29021,18.446,18.414,44.64450203]
[1673647968429,29.9691928,18.445,18.414,24.64450203]
[1673647968641,29.9691928,18.445,18.41,116.4777]
[1673647968642,20.0,18.443,18.41,116.4777]
[1673647968852,43.29021,18.442,18.41,116.4777]
[1673647969075,26.29021,18.441,18.41,116.4777]
[1673647969271,17.0,18.44,18.41,116.4777]
[1673647969482,3.01357207,18.438,18.41,116.4777]
[1673647969701,20.0,18.438,18.405,20.0]
[1673647969914,20.0,18.435,18.405,20.0]
[1673647970236,3.4753092,18.433,18.405,20.0]
[1673647970449,6.29021,18.432,18.403,20.0]
[1673647970665,23.10315406,18.431,18.403,20.0]
[1673647971060,20.0,18.431,18.403,20.0]
[1673647972008,6.29021,18.431,18.403,20.0]
[1673647972220,3.27699119,18.446,18.405,24.64450203]
[1673647972426,29.9691928,18.438,18.405,24.64450203]
[1673647972640,6.29021,18.437,18.403,188.9]
[1673647972866,6.29021,18.437,18.406,20.0]
[1673647973059,49.9691928,18.436,18.406,20.0]
[1673647973277,6.29021,18.435,18.406,20.0]
[1673647973477,20.0,18.434,18.406,20.0]
[1673647973688,33.7,18.43,18.406,20.0]
[1673647974024,39.99021,18.43,18.406,20.0]
[1673647974856,39.99021,18.43,18.404,46.90799997]
[1673647974857,29.9691928,18.429,18.404,46.90799997]
[1673647975076,29.9691928,18.429,18.404,26.90799997]
[1673647975077,33.7,18.42,18.404,26.90799997]
[1673647975279,2.5,18.419,18.404,26.90799997]
[1673647975804,33.7,18.42,18.405,20.0]
[1673647976000,4.03760493,18.437,18.405,20.0]
[1673647976219,33.44,18.43,18.405,20.0]
[1673647976422,33.44,18.43,18.406,20.0]
[1673647976836,6.29021,18.436,18.407,20.0]
[1673647977058,33.86,18.44,18.408,20.0]
[1673647977475,36.2594028,18.439,18.408,20.0]
[1673647977701,6.29021,18.438,18.408,20.0]
[1673647978544,121.95112519,18.465,18.408,26.26817]
[1673647978757,29.9691928,18.446,18.409,20.0]
[1673647978969,6.29021,18.445,18.409,20.0]
[1673647979186,33.7,18.44,18.409,20.0]
[1673647979390,6.29021,18.439,18.409,20.0]
[1673647980332,36.2594028,18.439,18.409,20.0]
[1673647980538,6.29021,18.439,18.41,20.0]
[1673647980746,33.7,18.44,18.411,20.0]
[1673647981078,33.55,18.45,18.412,195.16681]
[1673647981269,33.55,18.45,18.413,6.26647]
[1673647981479,6.29021,18.449,18.414,20.0]
[1673647981809,6.29021,18.449,18.415,20.0]
[1673647982027,6.29021,18.449,18.415,188.9]
[1673647982344,6.29021,18.449,18.416,20.0]
[1673647982756,33.55,18.45,18.418,20.0]
[1673647983167,33.55,18.45,18.419,20.0]
[1673647983583,33.55,18.45,18.42,20.0]
[1673647983795,33.55,18.45,18.421,20.0]
[1673647984125,33.7,18.44,18.417,187.25574797]
[1673647984343,6.29021,18.439,18.417,187.25574797]
[1673647984964,33.7,18.43,18.417,187.25574797]
[1673647985164,6.29021,18.439,18.417,187.25574797]
[1673647985996,29.9691928,18.438,18.417,187.25574797]
[1673647986210,33.7,18.43,18.417,187.25574797]
[1673647986418,6.29021,18.429,18.417,187.25574797]
[1673647988225,49.9691928,18.428,18.417,187.25574797]
[1673647988422,6.29021,18.427,18.417,187.25574797]
[1673647988629,20.0,18.426,18.417,187.25574797]
[1673647988842,26.29021,18.426,18.417,187.25574797]
[1673647989258,6.29021,18.426,18.417,187.25574797]
[1673647989692,17.0,18.425,18.417,187.25574797]
[1673647989892,28.79021,18.424,18.417,187.25574797]
[1673647990121,23.29021,18.423,18.417,187.25574797]
[1673647990331,6.29021,18.422,18.417,187.25574797]
[1673647990752,20.0,18.421,18.417,187.25574797]
[1673647990976,6.29021,18.42,18.417,107.69894797]
[1673647991186,37.0,18.419,18.417,107.69894797]
[1673647991510,9.47483336,18.418,18.417,107.69894797]
[1673647991711,26.47483336,18.418,18.417,107.69894797]
[1673647992032,78.35918034,18.418,18.417,107.69894797]
[1673647992227,98.28982953,18.418,18.417,107.69894797]
[1673647992438,81.28982953,18.418,18.417,107.69894797]
[1673647992668,46.84211025,18.418,18.417,107.69894797]
[1673647992864,63.84211025,18.418,18.417,107.69894797]
[1673647993278,89.38771703,18.418,18.404,28.4397936]
[1673647993490,89.38771703,18.418,18.39,29.3135206]
[1673647993491,33.69,18.41,18.39,29.3135206]
[1673647993813,33.64,18.4,18.39,29.3135206]
[1673647994134,6.29021,18.399,18.39,24.3135206]
[1673647994334,5.64587561,18.398,18.39,24.3135206]
[1673647994544,89.83517929,18.398,18.39,24.3135206]
[1673647994872,33.64,18.4,18.39,24.3135206]
[1673647997802,30.0,18.416,18.39,24.3135206]
[1673647998006,26.29021,18.415,18.391,20.0]
[1673647998217,6.29021,18.414,18.391,20.0]
[1673647998426,20.0,18.413,18.39,24.3135206]
[1673647998637,20.0,18.412,18.39,24.3135206]
[1673647998846,26.29021,18.411,18.39,24.3135206]
[1673647999062,6.29021,18.41,18.39,24.3135206]
[1673647999383,37.0,18.409,18.39,24.3135206]
[1673647999581,20.0,18.407,18.39,24.3135206]
[1673647999787,6.29021,18.406,18.39,24.3135206]
[1673648001477,17.0,18.405,18.39,24.3135206]
[1673648001698,6.29021,18.404,18.39,24.3135206]
[1673648001911,46.03672928,18.404,18.39,24.3135206]
[1673648002223,6.29021,18.404,18.39,24.3135206]
[1673648003270,17.0,18.403,18.39,24.3135206]
[1673648003465,6.29021,18.402,18.39,24.3135206]
[1673648003675,2.98667401,18.4,18.39,24.3135206]
[1673648003895,37.0,18.401,18.39,24.3135206]
[1673648003896,6.29021,18.399,18.39,24.3135206]
[1673648004101,2.95298895,18.398,18.39,24.3135206]
[1673648004302,6.29021,18.397,18.39,24.3135206]
[1673648004849,19.97383285,18.396,18.39,24.3135206]
[1673648005046,6.29021,18.395,18.39,24.3135206]
[1673648005260,37.0,18.394,18.39,24.3135206]
[1673648005473,10.36866188,18.393,18.39,24.3135206]
[1673648005671,4.47661279,18.391,18.39,24.3135206]
[1673648005886,20.0,18.39,18.376,54.9945536]
[1673648006194,30.76682279,18.391,18.376,54.9945536]
[1673648006195,26.29021,18.389,18.376,54.9945536]
[1673648006411,6.29021,18.388,18.376,54.9945536]
[1673648006622,23.29021,18.388,18.376,54.9945536]
[1673648007046,23.29021,18.388,18.362,20.0]
[1673648007047,87.06373451,18.388,18.362,20.0]
[1673648007265,87.06373451,18.388,18.387,123.28367174]
[1673648007462,53.2594028,18.388,18.387,123.28367174]
[1673648007664,87.55799767,18.388,18.387,123.28367174]
[1673648007879,43.63606261,18.388,18.387,123.28367174]
[1673648008090,29.9691928,18.396,18.387,123.28367174]
[1673648008318,29.9691928,18.39,18.387,123.28367174]
[1673648008534,37.24724328,18.392,18.387,123.28367174]
[1673648008751,37.24724328,18.39,18.387,123.28367174]
[1673648009268,63.77352451,18.389,18.387,123.28367174]
[1673648009458,17.0,18.388,18.387,123.28367174]
[1673648009671,124.00076779,18.388,18.387,123.28367174]
[1673648009879,165.52810285,18.388,18.387,123.28367174]
[1673648010088,135.55891005,18.388,18.387,123.28367174]
[1673648010298,165.52810285,18.388,18.387,123.28367174]
[1673648010618,165.52810285,18.388,18.387,30.20363369]
[1673648011260,77.03157499,18.388,18.387,30.20363369]
[1673648011461,33.80433171,18.388,18.387,30.20363369]
[1673648011673,143.10016622,18.388,18.387,30.20363369]
[1673648012220,163.10016622,18.388,18.387,30.20363369]
[1673648012535,186.39037622,18.388,18.387,30.20363369]
[1673648012761,186.39037622,18.388,18.387,493.13468696]
[1673648012980,152.58604451,18.388,18.387,482.13468696]
[1673648013178,152.58604451,18.388,18.387,375.58312349]
[1673648013179,188.47037622,18.388,18.387,375.58312349]
[1673648013395,188.47037622,18.388,18.387,74.25018059]
[1673648013575,188.47037622,18.388,18.354,113.5269]
[1673648013576,44.47954144,18.38,18.359,31.3154725]
[1673648013780,26.29021,18.379,18.359,31.3154725]
[1673648013989,72.6855436,18.379,18.359,31.3154725]
[1673648014213,20.0,18.379,18.359,31.3154725]
[1673648014424,20.0,18.383,18.36,20.0]
[1673648014848,63.10980027,18.383,18.36,20.0]
[1673648015249,63.10980027,18.383,18.36,133.1618]
[1673648015460,29.9691928,18.382,18.36,133.1618]
[1673648015669,20.0,18.381,18.36,133.1618]
[1673648016439,20.0,18.383,18.36,133.1618]
[1673648016614,29.9691928,18.38,18.36,133.1618]
[1673648016828,20.0,18.379,18.36,133.1618]
[1673648017262,29.9691928,18.378,18.36,133.1618]
[1673648017686,17.0,18.377,18.36,133.1618]
[1673648017901,29.9691928,18.378,18.36,133.1618]
[1673648018111,46.9691928,18.377,18.36,133.1618]
[1673648018305,130.73454069,18.377,18.36,133.1618]
[1673648018516,113.73454069,18.377,18.36,133.1618]
[1673648018731,20.0,18.379,18.36,133.1618]
[1673648018941,29.9691928,18.377,18.36,113.1618]
[1673648019146,46.9691928,18.377,18.36,113.1618]
[1673648019567,46.9691928,18.377,18.359,31.3154725]
[1673648019568,126.28953899,18.377,18.376,15.61933169]
[1673648019777,129.99207788,18.377,18.376,15.61933169]
[1673648020415,123.72728958,18.377,18.376,15.61933169]
[1673648020634,90.05555789,18.377,18.376,15.61933169]
[1673648020833,83.76534789,18.377,18.376,15.61933169]
[1673648021044,40.65554762,18.377,18.376,15.61933169]
[1673648021248,30.13341794,18.384,18.376,15.61933169]
[1673648022191,0.00341794,18.384,18.376,15.61933169]
[1673648023049,33.86,18.4,18.377,20.0]
[1673648023904,33.86,18.4,18.376,15.61933169]
[1673648024115,49.9691928,18.399,18.376,15.61933169]
[1673648024323,33.69,18.39,18.376,15.61933169]
[1673648024848,20.0,18.389,18.376,15.61933169]
[1673648025056,49.39827693,18.399,18.376,15.61933169]
[1673648025252,75.24528095,18.4,18.377,20.0]
[1673648025673,168.9,18.428,18.377,26.27875]
[1673648025902,33.44,18.41,18.378,113.1551]
[1673648026095,33.44,18.41,18.379,20.0]
[1673648026305,33.44,18.41,18.38,20.0]
[1673648026955,29.9691928,18.409,18.381,20.0]
[1673648027364,29.9691928,18.409,18.382,20.0]
[1673648027575,29.9691928,18.409,18.383,20.0]
[1673648027988,37.1363611,18.419,18.384,20.0]
[1673648028197,37.1363611,18.419,18.386,20.0]
[1673648028198,29.9691928,18.415,18.386,20.0]
[1673648028641,29.9691928,18.415,18.388,20.0]
[1673648028832,29.9691928,18.415,18.389,20.0]
[1673648029376,48.23409683,18.415,18.389,20.0]
[1673648029894,29.9691928,18.414,18.389,20.0]
[1673648030106,6.29021,18.413,18.386,20.0]
[1673648030421,33.7,18.41,18.386,20.0]
[1673648030634,17.0,18.409,18.386,20.0]
[1673648030820,66.9691928,18.409,18.386,20.0]
[1673648031031,49.9691928,18.409,18.386,20.0]
[1673648031253,20.0,18.409,18.386,20.0]
[1673648031467,29.9691928,18.408,18.386,20.0]
[1673648032717,17.0,18.407,18.381,20.0]
[1673648032929,33.69,18.4,18.38,112.3246]
[1673648033132,37.0,18.399,18.38,112.3246]
[1673648033893,36.2594028,18.398,18.38,112.3246]
[1673648034106,23.29021,18.397,18.38,112.3246]
[1673648034322,33.64,18.39,18.38,112.3246]
[1673648034713,20.0,18.389,18.38,112.3246]
[1673648034923,20.0,18.389,18.376,55.24914687]
[1673648035261,3.81422799,18.388,18.376,55.24914687]
[1673648035457,20.0,18.389,18.376,55.24914687]
[1673648036293,33.86,18.4,18.376,55.24914687]
[1673648036518,20.0,18.399,18.376,55.24914687]
[1673648036725,49.9691928,18.399,18.376,55.24914687]
[1673648037045,49.9691928,18.399,18.373,70.89060997]
[1673648037046,20.0,18.399,18.373,70.89060997]
[1673648037256,20.0,18.399,18.374,40.0]
[1673648038835,33.86,18.4,18.374,40.0]
[1673648039232,20.0,18.399,18.374,40.0]
[1673648040087,20.0,18.399,18.374,20.0]
[1673648040300,29.9691928,18.398,18.374,20.0]
[1673648040924,17.0,18.397,18.374,20.0]
[1673648041453,46.9691928,18.397,18.374,20.0]
[1673648041664,46.9691928,18.397,18.373,70.89060997]
[1673648041861,20.0,18.396,18.373,70.89060997]
[1673648042066,23.29021,18.395,18.373,70.89060997]
[1673648042278,33.55,18.39,18.373,70.89060997]
[1673648042503,20.0,18.389,18.373,70.89060997]
[1673648044073,23.29021,18.395,18.373,70.89060997]
[1673648044074,6.29021,18.395,18.373,70.89060997]
[1673648044298,20.0,18.394,18.373,70.89060997]
[1673648044491,6.29021,18.395,18.373,70.89060997]
[1673648045137,29.9691928,18.395,18.373,70.89060997]
[1673648046195,33.86,18.4,18.373,70.89060997]
[1673648046617,33.55,18.41,18.374,168.9]
[1673648046924,33.55,18.41,18.375,20.0]
[1673648047445,6.29021,18.409,18.375,20.0]
[1673648047634,33.7,18.4,18.376,20.0]
[1673648048058,33.7,18.4,18.373,70.89060997]
[1673648048059,20.0,18.399,18.373,70.89060997]
[1673648048282,66.9691928,18.399,18.373,70.89060997]
[1673648048599,29.9691928,18.398,18.373,70.89060997]
[1673648048813,37.0,18.397,18.373,70.89060997]
[1673648049337,29.9691928,18.396,18.373,70.89060997]
[1673648049545,37.0,18.395,18.373,70.89060997]
[1673648049950,59.9383856,18.394,18.373,70.89060997]
[1673648050160,17.0,18.393,18.373,70.89060997]
[1673648050599,17.0,18.393,18.374,20.0]
[1673648051218,17.0,18.393,18.373,70.89060997]
[1673648051219,20.0,18.392,18.373,70.89060997]
[1673648051425,4.10278985,18.39,18.373,70.89060997]
[1673648051655,37.77278985,18.39,18.373,70.89060997]
[1673648051872,4.9251916,18.388,18.373,70.89060997]
[1673648052064,4.9251916,18.386,18.373,70.89060997]
[1673648052274,4.9251916,18.387,18.373,70.89060997]
[1673648052479,4.9251916,18.385,18.373,70.89060997]
[1673648052686,4.9251916,18.387,18.373,70.89060997]
[1673648053431,17.0,18.386,18.373,70.89060997]
[1673648053642,4.9251916,18.385,18.373,70.89060997]
[1673648053864,4.9251916,18.387,18.373,70.89060997]
[1673648054288,17.0,18.386,18.373,70.89060997]
[1673648054595,4.9251916,18.385,18.373,70.89060997]
[1673648054806,4.9251916,18.387,18.373,70.89060997]
[1673648055645,63.6391928,18.39,18.373,70.89060997]
[1673648055863,3.28928937,18.388,18.373,70.89060997]
[1673648056398,4.93172157,18.386,18.373,70.89060997]
[1673648056589,17.0,18.385,18.373,70.89060997]
[1673648056802,24.93172157,18.384,18.373,70.89060997]
[1673648057009,17.0,18.383,18.373,70.89060997]
[1673648057226,24.93172157,18.382,18.373,70.89060997]
[1673648057435,17.0,18.381,18.373,70.89060997]
[1673648057636,24.93172157,18.38,18.373,70.89060997]
[1673648057846,17.0,18.379,18.373,70.89060997]
[1673648058053,4.93172157,18.378,18.373,70.89060997]
[1673648058272,24.93172157,18.378,18.373,70.89060997]
[1673648059015,54.90091437,18.378,18.373,70.89060997]
[1673648059231,17.0,18.377,18.373,70.89060997]
[1673648059440,21.93172157,18.377,18.373,70.89060997]
[1673648059648,51.90091437,18.377,18.373,70.89060997]
[1673648060262,43.81071369,18.376,18.373,70.89060997]
[1673648060592,33.7,18.39,18.373,70.89060997]
[1673648060795,39.99021,18.39,18.373,71.49495897]
[1673648061010,69.9594028,18.39,18.373,71.49495897]
[1673648061960,39.99021,18.39,18.373,71.49495897]
[1673648062358,69.9594028,18.39,18.373,71.49495897]
[1673648063120,39.99021,18.39,18.373,71.49495897]
[1673648063430,62.20861429,18.389,18.373,71.49495897]
[1673648063647,20.0,18.389,18.373,71.49495897]
[1673648064675,39.99021,18.39,18.373,71.49495897]
[1673648064886,29.9691928,18.389,18.373,71.49495897]
[1673648065092,2.95243072,18.386,18.373,71.49495897]
[1673648065307,6.29021,18.386,18.373,71.49495897]
[1673648065532,17.0,18.385,18.373,71.49495897]
[1673648065750,17.0,18.387,18.373,71.49495897]
[1673648066155,49.9691928,18.386,18.373,71.49495897]
[1673648066366,3.06098942,18.384,18.373,71.49495897]
[1673648066576,23.06098942,18.384,18.373,71.49495897]
[1673648066790,3.10378104,18.382,18.373,71.49495897]
[1673648067416,20.0,18.389,18.373,71.49495897]
[1673648067641,49.9691928,18.389,18.373,71.49495897]
[1673648067832,29.9691928,18.388,18.373,71.49495897]
[1673648068037,59.9383856,18.388,18.373,71.49495897]
[1673648068257,20.0,18.389,18.373,71.49495897]
[1673648068882,29.9691928,18.388,18.373,71.49495897]
[1673648069319,20.0,18.387,18.373,71.49495897]
[1673648069533,43.29021,18.387,18.373,71.49495897]
[1673648069751,29.9691928,18.386,18.373,71.49495897]
[1673648069957,37.0,18.385,18.373,71.49495897]
[1673648070161,3.21829991,18.384,18.373,71.49495897]
[1673648070377,29.9691928,18.384,18.373,71.49495897]
[1673648070695,66.9691928,18.383,18.373,71.49495897]
[1673648071012,29.9691928,18.382,18.373,71.49495897]
[1673648071225,20.0,18.381,18.373,71.49495897]
[1673648071627,46.9691928,18.38,18.373,71.49495897]
[1673648071840,20.0,18.379,18.373,71.49495897]
[1673648072047,20.8663363,18.378,18.373,71.49495897]
[1673648073217,3.8663363,18.378,18.373,71.49495897]
[1673648073434,49.9691928,18.379,18.373,71.49495897]
[1673648073837,17.0,18.378,18.373,71.49495897]
[1673648074050,46.9691928,18.378,18.373,60.02115897]
[1673648074380,150.56971787,18.377,18.373,60.02115897]
[1673648074571,23.29021,18.376,18.373,60.02115897]
[1673648074778,31.27638814,18.375,18.373,60.02115897]
[1673648074989,17.0,18.374,18.373,60.02115897]
[1673648075216,71.95537094,18.374,18.373,60.02115897]
[1673648075528,119.12721611,18.374,18.373,60.02115897]
[1673648076991,72.15802331,18.374,18.373,60.02115897]
[1673648077198,20.0,18.374,18.373,60.02115897]